[Event "Elitserien 2019/2020, round 1-3"]
[Site "Uppsala University, Gamla torget, Uppsala, Sweden"]
[Date "2019.10.19"]
[Round "2.7"]
[White "Barkhagen, Jonas"]
[Black "Olofsson-Dolk, Mattis"]
[Result "1-0"]
[TimeControl "90 minutes for 40 moves + 30 minutes for the rest of the game + 30 seconds per move from move one."]
[WhiteTitle "IM"]
[WhiteFideId "1700855"]
[BlackFideId "1715178"]
[WhiteElo "2427"]
[BlackElo "2209"]

1. d4 {[%clk 01:30:53]} {[%emt 00:00:05]} Nf6 {[%clk 01:30:52]} {[%emt
00:00:09]} 2. c4 {[%clk 01:31:18]} {[%emt 00:00:05]} g6 {[%clk 01:31:16]}
{[%emt 00:00:07]} 3. Nc3 {[%clk 01:31:42]} {[%emt 00:00:04]} d5 {[%clk
01:31:40]} {[%emt 00:00:08]} 4. Bg5 {[%clk 01:32:00]} {[%emt 00:00:11]} Ne4
{[%clk 01:32:01]} {[%emt 00:00:10]} 5. Bf4 {[%clk 01:32:25]} {[%emt 00:00:04]}
Nxc3 {[%clk 01:32:04]} {[%emt 00:00:27]} 6. bxc3 {[%clk 01:32:49]} {[%emt
00:00:06]} Bg7 {[%clk 01:31:27]} {[%emt 00:01:07]} 7. e3 {[%clk 01:33:12]}
{[%emt 00:00:07]} c5 {[%clk 01:31:24]} {[%emt 00:00:34]} 8. Nf3 {[%clk
01:32:52]} {[%emt 00:00:50]} O-O {[%clk 01:30:16]} {[%emt 00:01:38]} 9. cxd5
{[%clk 01:33:08]} {[%emt 00:00:13]} cxd4 {[%clk 01:30:11]} {[%emt 00:00:36]} 10.
cxd4 {[%clk 01:33:31]} {[%emt 00:00:06]} Qxd5 {[%clk 01:30:06]} {[%emt
00:00:35]} 11. Be2 {[%clk 01:33:46]} {[%emt 00:00:15]} Nc6 {[%clk 01:29:01]}
{[%emt 00:01:35]} 12. O-O {[%clk 01:34:08]} {[%emt 00:00:07]} Bf5 {[%clk
01:28:40]} {[%emt 00:00:53]} 13. Qa4 {[%clk 01:31:51]} {[%emt 00:02:46]} Qa5
{[%clk 01:27:59]} {[%emt 00:01:11]} 14. Qb3 {[%clk 01:32:12]} {[%emt 00:00:10]}
Qb4 {[%clk 01:27:10]} {[%emt 00:01:18]} 15. Rfc1 {[%clk 01:31:18]} {[%emt
00:01:23]} a6 {[%clk 01:18:04]} {[%emt 00:09:36]} 16. Bc4 {[%clk 01:17:58]}
{[%emt 00:13:50]} Qxb3 {[%clk 01:11:18]} {[%emt 00:07:18]} 17. axb3 {[%clk
00:55:19]} {[%emt 00:23:09]} Nb4 {[%clk 01:02:18]} {[%emt 00:09:29]} 18. Ne5
{[%clk 00:24:57]} {[%emt 00:30:52]} b5 {[%clk 00:55:29]} {[%emt 00:07:19]} 19.
Be2 {[%clk 00:25:05]} {[%emt 00:00:22]} Rac8 {[%clk 00:53:36]} {[%emt
00:02:23]} 20. Bf3 {[%clk 00:16:45]} {[%emt 00:08:50]} Bxe5 {[%clk 00:46:38]}
{[%emt 00:07:28]} 21. Bxe5 {[%clk 00:16:59]} {[%emt 00:00:17]} Be6 {[%clk
00:45:36]} {[%emt 00:01:32]} 22. Bc7 {[%clk 00:08:17]} {[%emt 00:09:11]} Bd5
{[%clk 00:35:10]} {[%emt 00:10:56]} 23. Ba5 {[%clk 00:06:59]} {[%emt 00:01:49]}
Bxf3 {[%clk 00:33:58]} {[%emt 00:01:42]} 24. Bxb4 {[%clk 00:06:20]} {[%emt
00:01:08]} Rxc1+ {[%clk 00:32:12]} {[%emt 00:02:17]} 25. Rxc1 {[%clk 00:06:46]}
{[%emt 00:00:03]} Bd5 {[%clk 00:32:33]} {[%emt 00:00:10]} 26. Bxe7 {[%clk
00:03:57]} {[%emt 00:03:19]} Re8 {[%clk 00:32:56]} {[%emt 00:00:06]} 27. Bf6
{[%clk 00:04:22]} {[%emt 00:00:05]} Bxb3 {[%clk 00:32:32]} {[%emt 00:00:55]} 28.
e4 {[%clk 00:01:37]} {[%emt 00:03:13]} Bc4 {[%clk 00:28:56]} {[%emt 00:04:08]}
29. f3 {[%clk 00:01:53]} {[%emt 00:00:13]} Rc8 {[%clk 00:27:54]} {[%emt
00:01:32]} 30. d5 {[%clk 00:02:02]} {[%emt 00:00:21]} Kf8 {[%clk 00:28:23]}
{[%emt 00:00:01]} 31. Bc3 {[%clk 00:01:36]} {[%emt 00:00:56]} Ke8 {[%clk
00:27:11]} {[%emt 00:01:42]} 32. Bb4 {[%clk 00:01:53]} {[%emt 00:00:13]} Kd7
{[%clk 00:27:15]} {[%emt 00:00:27]} 33. Ra1 {[%clk 00:02:09]} {[%emt 00:00:13]}
Ra8 {[%clk 00:26:38]} {[%emt 00:01:06]} 34. Kf2 {[%clk 00:02:29]} {[%emt
00:00:11]} Bb3 {[%clk 00:24:18]} {[%emt 00:02:49]} 35. Ke3 {[%clk 00:02:28]}
{[%emt 00:00:31]} Ba4 {[%clk 00:21:56]} {[%emt 00:02:53]} 36. Kd4 {[%clk
00:02:56]} {[%emt 00:00:02]} Rc8 {[%clk 00:21:06]} {[%emt 00:01:21]} 37. Bc5
{[%clk 00:03:22]} {[%emt 00:00:04]} Kc7 {[%clk 00:14:40]} {[%emt 00:06:55]} 38.
f4 {[%clk 00:03:22]} {[%emt 00:00:30]} Rd8 {[%clk 00:14:12]} {[%emt 00:00:58]}
39. Ra3 {[%clk 00:02:09]} {[%emt 00:01:44]} Kb7 {[%clk 00:12:01]} {[%emt
00:02:40]} 40. g4 {[%clk 00:01:41]} {[%emt 00:00:58]} Bd1 {[%clk 00:09:27]}
{[%emt 00:03:04]} 41. h3 {[%clk 00:20:23]} {[%emt 00:11:48]} Be2 {[%clk
00:38:45]} {[%emt 00:01:10]} 42. f5 {[%clk 00:18:24]} {[%emt 00:02:30]} Bc4
{[%clk 00:34:01]} {[%emt 00:05:14]} 43. fxg6 {[%clk 00:13:46]} {[%emt
00:05:10]} hxg6 {[%clk 00:33:53]} {[%emt 00:00:37]} 44. Rf3 {[%clk 00:14:11]}
{[%emt 00:00:05]} Rd7 {[%clk 00:32:47]} {[%emt 00:01:36]} 45. Bb4 {[%clk
00:14:39]} {[%emt 00:00:02]} Rc7 {[%clk 00:29:21]} {[%emt 00:03:56]} 46. Ba5
{[%clk 00:11:35]} {[%emt 00:03:33]} Rd7 {[%clk 00:28:17]} {[%emt 00:01:35]} 47.
Rf2 {[%clk 00:11:57]} {[%emt 00:00:08]} Bb3 {[%clk 00:27:35]} {[%emt 00:01:11]}
48. Rf6 {[%clk 00:12:18]} {[%emt 00:00:10]} Bc4 {[%clk 00:27:03]} {[%emt
00:01:02]} 49. Rf4 {[%clk 00:11:26]} {[%emt 00:01:21]} Bb3 {[%clk 00:26:29]}
{[%emt 00:01:05]} 50. Rf2 {[%clk 00:11:26]} {[%emt 00:00:30]} Ka7 {[%clk
00:25:39]} {[%emt 00:01:19]} 51. Kc5 {[%clk 00:08:48]} {[%emt 00:03:07]} Kb7
{[%clk 00:25:39]} {[%emt 00:00:31]} 52. Rf6 {[%clk 00:06:00]} {[%emt 00:03:18]}
Bc2 {[%clk 00:21:14]} {[%emt 00:04:56]} 53. Rb6+ {[%clk 00:05:40]} {[%emt
00:00:49]} Ka7 {[%clk 00:19:15]} {[%emt 00:02:30]} 54. e5 {[%clk 00:05:51]}
{[%emt 00:00:19]} Bb3 {[%clk 00:18:05]} {[%emt 00:01:40]} 55. Rd6 {[%clk
00:06:07]} {[%emt 00:00:13]} Re7 {[%clk 00:18:06]} {[%emt 00:00:29]} 56. Kd4
{[%clk 00:06:22]} {[%emt 00:00:15]} Kb7 {[%clk 00:17:51]} {[%emt 00:00:46]} 57.
Rd8 {[%clk 00:06:40]} {[%emt 00:00:11]} Ka7 {[%clk 00:15:57]} {[%emt 00:02:24]}
58. d6 {[%clk 00:06:49]} {[%emt 00:00:21]} Rb7 {[%clk 00:16:17]} {[%emt
00:00:11]} 59. d7 {[%clk 00:07:04]} {[%emt 00:00:14]} 1-0

[Event "Elitserien 2019/2020, round 1-3"]
[Site "Uppsala University, Gamla torget, Uppsala, Sweden"]
[Date "2019.10.19"]
[Round "2.8"]
[White "Gonzalez, Emilio"]
[Black "Bator, Robert"]
[Result "1/2-1/2"]
[TimeControl "90 minutes for 40 moves + 30 minutes for the rest of the game + 30 seconds per move from move one."]
[BlackTitle "IM"]
[WhiteFideId "1721062"]
[BlackFideId "1700405"]
[WhiteElo "1936"]
[BlackElo "2358"]

1. c4 {[%clk 01:30:54]} {[%emt 00:00:04]} c6 {[%clk 01:30:32]} {[%emt
00:00:30]} 2. g3 {[%clk 01:30:57]} {[%emt 00:00:27]} d5 {[%clk 01:30:56]}
{[%emt 00:00:05]} 3. Nf3 {[%clk 01:31:20]} {[%emt 00:00:07]} Nf6 {[%clk
01:30:21]} {[%emt 00:01:05]} 4. Bg2 {[%clk 01:31:19]} {[%emt 00:00:31]} Bg4
{[%clk 01:30:08]} {[%emt 00:00:43]} 5. O-O {[%clk 01:27:47]} {[%emt 00:04:02]}
e6 {[%clk 01:29:34]} {[%emt 00:01:04]} 6. cxd5 {[%clk 01:22:45]} {[%emt
00:05:33]} exd5 {[%clk 01:26:51]} {[%emt 00:03:13]} 7. Qb3 {[%clk 01:07:49]}
{[%emt 00:15:25]} Qb6 {[%clk 01:26:02]} {[%emt 00:01:20]} 8. Qc2 {[%clk
01:07:44]} {[%emt 00:00:34]} Bd6 {[%clk 01:14:23]} {[%emt 00:12:10]} 9. d3
{[%clk 01:07:10]} {[%emt 00:01:03]} O-O {[%clk 01:03:05]} {[%emt 00:11:48]} 10.
Be3 {[%clk 01:02:40]} {[%emt 00:05:00]} Qa6 {[%clk 00:56:48]} {[%emt 00:06:48]}
11. Nc3 {[%clk 00:51:16]} {[%emt 00:11:54]} h6 {[%clk 00:49:32]} {[%emt
00:07:46]} 12. a3 {[%clk 00:50:27]} {[%emt 00:01:19]} Bf5 {[%clk 00:44:30]}
{[%emt 00:05:32]} 13. Bd4 {[%clk 00:45:39]} {[%emt 00:05:17]} Nbd7 {[%clk
00:43:04]} {[%emt 00:01:57]} 14. e4 {[%clk 00:44:27]} {[%emt 00:01:41]} dxe4
{[%clk 00:39:05]} {[%emt 00:04:29]} 15. Nxe4 {[%clk 00:44:34]} {[%emt
00:00:23]} Be7 {[%clk 00:37:50]} {[%emt 00:01:46]} 16. Rfe1 {[%clk 00:34:44]}
{[%emt 00:10:19]} Nd5 {[%clk 00:32:57]} {[%emt 00:05:23]} 17. b4 {[%clk
00:27:59]} {[%emt 00:07:15]} Rfd8 {[%clk 00:30:59]} {[%emt 00:02:28]} 18. Qb2
{[%clk 00:26:16]} {[%emt 00:02:12]} Bf8 {[%clk 00:30:58]} {[%emt 00:00:33]} 19.
Bf1 {[%clk 00:25:38]} {[%emt 00:01:08]} b6 {[%clk 00:29:00]} {[%emt 00:02:28]}
20. Rac1 {[%clk 00:23:02]} {[%emt 00:03:06]} Rac8 {[%clk 00:27:35]} {[%emt
00:01:54]} 21. Ne5 {[%clk 00:21:15]} {[%emt 00:02:17]} Nxe5 {[%clk 00:24:20]}
{[%emt 00:03:46]} 22. Bxe5 {[%clk 00:21:43]} {[%emt 00:00:02]} Qb7 {[%clk
00:20:51]} {[%emt 00:03:58]} 23. Bg2 {[%clk 00:20:55]} {[%emt 00:01:19]} Qd7
{[%clk 00:19:26]} {[%emt 00:01:54]} 24. Nc3 {[%clk 00:15:26]} {[%emt 00:05:58]}
f6 {[%clk 00:16:14]} {[%emt 00:03:43]} 25. Nxd5 {[%clk 00:15:36]} {[%emt
00:00:20]} cxd5 {[%clk 00:16:32]} {[%emt 00:00:12]} 26. Bf4 {[%clk 00:12:08]}
{[%emt 00:03:58]} Rxc1 {[%clk 00:14:22]} {[%emt 00:02:41]} 27. Rxc1 {[%clk
00:10:43]} {[%emt 00:01:54]} Bxd3 {[%clk 00:14:20]} {[%emt 00:00:33]} 28. Rc7
{[%clk 00:10:26]} {[%emt 00:00:46]} Qe6 {[%clk 00:07:54]} {[%emt 00:06:57]} 29.
Qd2 {[%clk 00:09:43]} {[%emt 00:01:13]} Bf5 {[%clk 00:07:47]} {[%emt 00:00:37]}
30. Qd4 {[%clk 00:09:01]} {[%emt 00:01:12]} a5 {[%clk 00:06:50]} {[%emt
00:01:26]} 31. Be3 {[%clk 00:08:24]} {[%emt 00:01:06]} axb4 {[%clk 00:06:20]}
{[%emt 00:01:01]} 32. axb4 {[%clk 00:08:52]} {[%emt 00:00:03]} Qd6 {[%clk
00:04:34]} {[%emt 00:02:15]} 33. Qxb6 {[%clk 00:05:19]} {[%emt 00:04:03]} d4
{[%clk 00:04:36]} {[%emt 00:00:28]} 34. Rc6 {[%clk 00:04:30]} {[%emt 00:01:19]}
Qxb4 {[%clk 00:03:11]} {[%emt 00:01:55]} 35. Qxd8 {[%clk 00:04:40]} {[%emt
00:00:20]} Qe1+ {[%clk 00:02:38]} {[%emt 00:01:04]} 36. Bf1 {[%clk 00:04:57]}
{[%emt 00:00:13]} dxe3 {[%clk 00:03:02]} {[%emt 00:00:05]} 37. Qd5+ {[%clk
00:02:46]} {[%emt 00:02:41]} Kh8 {[%clk 00:02:58]} {[%emt 00:00:34]} 38. Qxf5
{[%clk 00:03:01]} {[%emt 00:00:15]} e2 {[%clk 00:03:09]} {[%emt 00:00:19]} 39.
Qh3 {[%clk 00:03:14]} {[%emt 00:00:17]} 1/2-1/2

[Event "Elitserien 2019/2020, round 1-3"]
[Site "Uppsala University, Gamla torget, Uppsala, Sweden"]
[Date "2019.10.19"]
[Round "2.9"]
[White "Andersson, Tommy"]
[Black "Sjodahl, Pontus"]
[Result "1/2-1/2"]
[TimeControl "90 minutes for 40 moves + 30 minutes for the rest of the game + 30 seconds per move from move one."]
[WhiteTitle "IM"]
[BlackTitle "IM"]
[WhiteFideId "1703803"]
[BlackFideId "1700537"]
[WhiteElo "2391"]
[BlackElo "2441"]

1. d4 {[%clk 01:30:56]} {[%emt 00:00:03]} Nf6 {[%clk 01:30:33]} {[%emt
00:00:28]} 2. c4 {[%clk 01:31:14]} {[%emt 00:00:12]} e6 {[%clk 01:30:21]}
{[%emt 00:00:42]} 3. Nf3 {[%clk 01:31:34]} {[%emt 00:00:10]} d5 {[%clk
01:30:08]} {[%emt 00:00:43]} 4. Nc3 {[%clk 01:31:25]} {[%emt 00:00:38]} Bb4
{[%clk 01:30:02]} {[%emt 00:00:36]} 5. e3 {[%clk 01:30:54]} {[%emt 00:01:02]}
O-O {[%clk 01:29:19]} {[%emt 00:01:13]} 6. Bd3 {[%clk 01:30:13]} {[%emt
00:01:11]} b6 {[%clk 01:27:09]} {[%emt 00:02:40]} 7. O-O {[%clk 01:26:03]}
{[%emt 00:04:40]} Ba6 {[%clk 01:18:44]} {[%emt 00:08:55]} 8. Ne5 {[%clk
01:19:57]} {[%emt 00:06:37]} Nfd7 {[%clk 01:02:02]} {[%emt 00:17:11]} 9. Nxd7
{[%clk 01:10:18]} {[%emt 00:10:10]} Qxd7 {[%clk 01:01:10]} {[%emt 00:01:21]} 10.
Qc2 {[%clk 00:58:58]} {[%emt 00:11:51]} Bxc3 {[%clk 00:38:56]} {[%emt
00:22:43]} 11. Qxc3 {[%clk 00:56:43]} {[%emt 00:02:45]} dxc4 {[%clk 00:28:27]}
{[%emt 00:11:00]} 12. Bxc4 {[%clk 00:56:41]} {[%emt 00:00:31]} c5 {[%clk
00:26:10]} {[%emt 00:02:47]} 13. dxc5 {[%clk 00:45:52]} {[%emt 00:11:19]} Rc8
{[%clk 00:22:54]} {[%emt 00:03:46]} 14. b3 {[%clk 00:35:42]} {[%emt 00:10:40]}
Bxc4 {[%clk 00:15:41]} {[%emt 00:07:43]} 15. Bb2 {[%clk 00:29:05]} {[%emt
00:07:06]} f6 {[%clk 00:15:26]} {[%emt 00:00:45]} 16. Qxc4 {[%clk 00:23:59]}
{[%emt 00:05:37]} Rxc5 {[%clk 00:15:19]} {[%emt 00:00:35]} 17. Qe2 {[%clk
00:20:29]} {[%emt 00:04:02]} Qc6 {[%clk 00:09:12]} {[%emt 00:06:35]} 18. Rac1
{[%clk 00:17:18]} {[%emt 00:03:43]} Nd7 {[%clk 00:08:54]} {[%emt 00:00:47]} 19.
b4 {[%clk 00:13:59]} {[%emt 00:03:49]} Rxc1 {[%clk 00:08:35]} {[%emt 00:00:50]}
20. Rxc1 {[%clk 00:13:52]} {[%emt 00:00:37]} Qb7 {[%clk 00:07:51]} {[%emt
00:01:11]} 21. Qg4 {[%clk 00:08:46]} {[%emt 00:05:39]} Kf7 {[%clk 00:07:07]}
{[%emt 00:01:14]} 22. Qc4 {[%clk 00:07:05]} {[%emt 00:02:11]} b5 {[%clk
00:04:49]} {[%emt 00:02:47]} 23. Qd3 {[%clk 00:06:22]} {[%emt 00:01:13]} h6
{[%clk 00:04:36]} {[%emt 00:00:44]} 24. h4 {[%clk 00:02:57]} {[%emt 00:03:56]}
a6 {[%clk 00:02:51]} {[%emt 00:02:13]} 25. Rd1 {[%clk 00:01:54]} {[%emt
00:01:34]} Nf8 {[%clk 00:02:31]} {[%emt 00:00:50]} 26. Qd6 {[%clk 00:01:38]}
{[%emt 00:00:46]} Rc8 {[%clk 00:02:32]} {[%emt 00:00:28]} 27. Bd4 {[%clk
00:01:46]} {[%emt 00:00:23]} Rc6 {[%clk 00:02:16]} {[%emt 00:00:45]} 28. Qg3
{[%clk 00:01:53]} {[%emt 00:00:23]} Qc7 {[%clk 00:02:04]} {[%emt 00:00:42]} 29.
Qf3 {[%clk 00:01:58]} {[%emt 00:00:26]} Rc1 {[%clk 00:01:57]} {[%emt 00:00:37]}
30. Bc5 {[%clk 00:02:12]} {[%emt 00:00:17]} Rxd1+ {[%clk 00:02:10]} {[%emt
00:00:16]} 31. Qxd1 {[%clk 00:02:40]} {[%emt 00:00:02]} Qd7 {[%clk 00:01:02]}
{[%emt 00:01:38]} 32. Qh5+ {[%clk 00:02:42]} {[%emt 00:00:29]} Ng6 {[%clk
00:01:10]} {[%emt 00:00:21]} 33. g3 {[%clk 00:01:02]} {[%emt 00:02:10]} Qd3
{[%clk 00:00:57]} {[%emt 00:00:42]} 34. Kh2 {[%clk 00:00:48]} {[%emt 00:00:45]}
Qc2 {[%clk 00:00:48]} {[%emt 00:00:38]} 35. Qf3 {[%clk 00:01:03]} {[%emt
00:00:17]} Qxa2 {[%clk 00:00:40]} {[%emt 00:00:37]} 36. h5 {[%clk 00:00:51]}
{[%emt 00:00:42]} Ne5 {[%clk 00:00:59]} {[%emt 00:00:11]} 37. Qb7+ {[%clk
00:01:15]} {[%emt 00:00:06]} Kg8 {[%clk 00:01:22]} {[%emt 00:00:07]} 38. Qa8+
{[%clk 00:01:25]} {[%emt 00:00:20]} Kh7 {[%clk 00:01:20]} {[%emt 00:00:32]} 39.
Qe4+ {[%clk 00:01:31]} {[%emt 00:00:24]} Kg8 {[%clk 00:01:45]} {[%emt
00:00:05]} 40. Qa8+ {[%clk 00:01:56]} {[%emt 00:00:04]} Kh7 {[%clk 00:01:51]}
{[%emt 00:00:25]} 41. Qe4+ {[%clk 00:02:05]} {[%emt 00:00:20]} Kg8 {[%clk
00:01:56]} {[%emt 00:00:26]} 42. Qa8+ {[%clk 00:02:25]} {[%emt 00:00:10]}
1/2-1/2

[Event "Elitserien 2019/2020, round 1-3"]
[Site "Uppsala University, Gamla torget, Uppsala, Sweden"]
[Date "2019.10.19"]
[Round "2.10"]
[White "Akesson, Ralf"]
[Black "Krupenski, Juri"]
[Result "1-0"]
[TimeControl "90 minutes for 40 moves + 30 minutes for the rest of the game + 30 seconds per move from move one."]
[WhiteTitle "GM"]
[BlackTitle "IM"]
[WhiteFideId "1700120"]
[BlackFideId "4501101"]
[WhiteElo "2367"]
[BlackElo "2399"]

1. d4 {[%clk 01:26:54]} {[%emt 00:04:05]} d5 {[%clk 01:30:44]} {[%emt
00:00:17]} 2. c4 {[%clk 01:27:08]} {[%emt 00:00:16]} e6 {[%clk 01:31:09]}
{[%emt 00:00:05]} 3. Nc3 {[%clk 01:27:01]} {[%emt 00:00:37]} Bb4 {[%clk
01:30:44]} {[%emt 00:00:55]} 4. e3 {[%clk 01:23:03]} {[%emt 00:04:28]} c6
{[%clk 01:24:06]} {[%emt 00:07:07]} 5. Nf3 {[%clk 01:21:16]} {[%emt 00:02:18]}
Nf6 {[%clk 01:23:17]} {[%emt 00:01:20]} 6. Bd3 {[%clk 01:18:17]} {[%emt
00:03:28]} O-O {[%clk 01:22:02]} {[%emt 00:01:44]} 7. O-O {[%clk 01:16:44]}
{[%emt 00:02:04]} b6 {[%clk 01:22:10]} {[%emt 00:00:22]} 8. Qc2 {[%clk
01:10:35]} {[%emt 00:06:39]} Ba6 {[%clk 01:19:52]} {[%emt 00:02:49]} 9. b3
{[%clk 01:10:33]} {[%emt 00:00:31]} Nbd7 {[%clk 01:16:37]} {[%emt 00:03:45]} 10.
Bb2 {[%clk 01:07:20]} {[%emt 00:03:43]} Rc8 {[%clk 01:10:26]} {[%emt 00:06:41]}
11. Rfd1 {[%clk 00:57:01]} {[%emt 00:10:48]} Qe7 {[%clk 00:59:52]} {[%emt
00:11:05]} 12. a3 {[%clk 00:49:57]} {[%emt 00:07:35]} Bd6 {[%clk 00:58:51]}
{[%emt 00:01:31]} 13. Rac1 {[%clk 00:36:27]} {[%emt 00:13:59]} Rfe8 {[%clk
00:45:29]} {[%emt 00:13:51]} 14. Bf1 {[%clk 00:32:31]} {[%emt 00:04:26]} Bb7
{[%clk 00:42:53]} {[%emt 00:03:06]} 15. b4 {[%clk 00:29:28]} {[%emt 00:03:34]}
dxc4 {[%clk 00:23:43]} {[%emt 00:19:41]} 16. Bxc4 {[%clk 00:29:23]} {[%emt
00:00:34]} c5 {[%clk 00:23:41]} {[%emt 00:00:32]} 17. bxc5 {[%clk 00:26:53]}
{[%emt 00:02:59]} bxc5 {[%clk 00:22:28]} {[%emt 00:01:44]} 18. d5 {[%clk
00:22:58]} {[%emt 00:04:25]} Nb6 {[%clk 00:16:56]} {[%emt 00:06:02]} 19. Bb5
{[%clk 00:22:54]} {[%emt 00:00:34]} Red8 {[%clk 00:14:34]} {[%emt 00:02:53]} 20.
dxe6 {[%clk 00:21:56]} {[%emt 00:01:27]} Qxe6 {[%clk 00:12:04]} {[%emt
00:02:59]} 21. Ne2 {[%clk 00:19:10]} {[%emt 00:03:16]} Ne4 {[%clk 00:06:48]}
{[%emt 00:05:47]} 22. Ng3 {[%clk 00:18:35]} {[%emt 00:01:05]} c4 {[%clk
00:04:14]} {[%emt 00:03:04]} 23. Bd4 {[%clk 00:05:19]} {[%emt 00:13:46]} Bxg3
{[%clk 00:02:49]} {[%emt 00:01:55]} 24. hxg3 {[%clk 00:05:41]} {[%emt
00:00:07]} a6 {[%clk 00:03:09]} {[%emt 00:00:11]} 25. Bxb6 {[%clk 00:03:32]}
{[%emt 00:02:38]} Rxd1+ {[%clk 00:03:24]} {[%emt 00:00:16]} 26. Rxd1 {[%clk
00:02:33]} {[%emt 00:01:28]} axb5 {[%clk 00:03:46]} {[%emt 00:00:09]} 27. Bd4
{[%clk 00:02:00]} {[%emt 00:01:03]} f6 {[%clk 00:03:03]} {[%emt 00:01:13]} 28.
Rb1 {[%clk 00:02:05]} {[%emt 00:00:25]} Qd5 {[%clk 00:02:42]} {[%emt 00:00:51]}
29. Ne1 {[%clk 00:01:38]} {[%emt 00:00:57]} Ra8 {[%clk 00:02:39]} {[%emt
00:00:33]} 30. Qb2 {[%clk 00:01:15]} {[%emt 00:00:53]} Bc6 {[%clk 00:02:53]}
{[%emt 00:00:16]} 31. Qb4 {[%clk 00:01:05]} {[%emt 00:00:40]} Kf7 {[%clk
00:03:05]} {[%emt 00:00:18]} 32. g4 {[%clk 00:00:49]} {[%emt 00:00:45]} Ra4
{[%clk 00:03:14]} {[%emt 00:00:22]} 33. Qb2 {[%clk 00:01:14]} {[%emt 00:00:04]}
Qd6 {[%clk 00:02:02]} {[%emt 00:01:42]} 34. Nc2 {[%clk 00:01:12]} {[%emt
00:00:32]} Ra8 {[%clk 00:00:56]} {[%emt 00:01:37]} 35. Rd1 {[%clk 00:01:12]}
{[%emt 00:00:30]} Ng5 {[%clk 00:00:55]} {[%emt 00:00:31]} 36. Qc1 {[%clk
00:00:45]} {[%emt 00:00:57]} Qd5 {[%clk 00:00:44]} {[%emt 00:00:41]} 37. Ne1
{[%clk 00:01:00]} {[%emt 00:00:15]} Qe6 {[%clk 00:00:45]} {[%emt 00:00:29]} 38.
f3 {[%clk 00:01:18]} {[%emt 00:00:11]} h5 {[%clk 00:01:05]} {[%emt 00:00:10]}
39. gxh5 {[%clk 00:01:20]} {[%emt 00:00:29]} Rh8 {[%clk 00:01:27]} {[%emt
00:00:08]} 40. e4 {[%clk 00:00:40]} {[%emt 00:01:09]} Rxh5 {[%clk 00:00:52]}
{[%emt 00:01:06]} 41. Qf4 {[%clk 00:24:24]} {[%emt 00:06:45]} Qe7 {[%clk
00:27:17]} {[%emt 00:04:05]} 42. Bf2 {[%clk 00:19:07]} {[%emt 00:05:48]} Rh8
{[%clk 00:23:35]} {[%emt 00:04:12]} 43. Rd6 {[%clk 00:17:42]} {[%emt 00:01:54]}
Rc8 {[%clk 00:21:06]} {[%emt 00:03:00]} 44. Nc2 {[%clk 00:17:19]} {[%emt
00:00:53]} Ne6 {[%clk 00:19:27]} {[%emt 00:02:09]} 45. Qh2 {[%clk 00:13:34]}
{[%emt 00:04:14]} Kg8 {[%clk 00:18:24]} {[%emt 00:01:34]} 46. Ne3 {[%clk
00:10:49]} {[%emt 00:03:16]} c3 {[%clk 00:07:52]} {[%emt 00:11:01]} 47. Nf5
{[%clk 00:11:04]} {[%emt 00:00:14]} Qf7 {[%clk 00:07:09]} {[%emt 00:01:13]} 48.
Be3 {[%clk 00:10:23]} {[%emt 00:01:11]} c2 {[%clk 00:05:57]} {[%emt 00:01:43]}
49. Qg3 {[%clk 00:09:09]} {[%emt 00:01:44]} Ng5 {[%clk 00:03:27]} {[%emt
00:03:00]} 50. Qg4 {[%clk 00:09:02]} {[%emt 00:00:35]} Qb3 {[%clk 00:02:02]}
{[%emt 00:01:57]} 51. Bxg5 {[%clk 00:05:37]} {[%emt 00:03:54]} fxg5 {[%clk
00:01:30]} {[%emt 00:01:02]} 52. Qxg5 {[%clk 00:05:37]} {[%emt 00:00:31]} Qb2
{[%clk 00:01:22]} {[%emt 00:00:38]} 53. Ne7+ {[%clk 00:04:49]} {[%emt
00:01:17]} Kf8 {[%clk 00:00:54]} {[%emt 00:00:59]} 54. Qf5+ {[%clk 00:04:43]}
{[%emt 00:00:36]} Kxe7 {[%clk 00:01:13]} {[%emt 00:00:10]} 55. Qe6+ {[%clk
00:05:04]} {[%emt 00:00:09]} Kf8 {[%clk 00:01:39]} {[%emt 00:00:05]} 56. Qxc8+
{[%clk 00:05:27]} {[%emt 00:00:06]} Kf7 {[%clk 00:02:02]} {[%emt 00:00:06]} 57.
Qe6+ {[%clk 00:05:38]} {[%emt 00:00:20]} 1-0